fUST/lending_fUST_20250503
["ID","MTS","AMOUNT","RATE_DAILY","PERIOD"]
[359726122,1746282633273,-400.0,0.00019363,2]
[359726123,1746282633283,-400.0,0.00019363,2]
[359726124,1746282633293,-264.68332616,0.00019363,2]
[359726125,1746282633303,-400.0,0.00019363,2]
[359726126,1746282633312,-400.0,0.00019363,2]
[359726127,1746282633322,-458.25873669,0.00019363,2]
[359726128,1746282633331,-400.0,0.00019363,2]
[359726129,1746282633340,-400.0,0.00019363,2]
[359726130,1746282633350,-442.78,0.00019364,2]
[359726131,1746282633360,-476.17,0.00019364,2]
[359726132,1746282633369,-400.0,0.00019364,2]
[359726133,1746282633379,-400.0,0.00019364,2]
[359726134,1746282633388,-171.58,0.000194,2]
[359726135,1746282633398,-400.0,0.000194,2]
[359726136,1746282633407,-400.0,0.000194,2]
[359726137,1746282633417,-201.05526529,0.00019495,2]
[359726138,1746282633426,-506.40841199,0.00019495,2]
[359726139,1746282633436,-400.0,0.00019636,2]
[359726140,1746282633445,-505.90656294,0.00019636,2]
[359726141,1746282633455,-400.0,0.00019636,2]
[359726142,1746282633464,-400.0,0.00019637,2]
[359726143,1746282633474,-400.0,0.00019637,2]
[359726144,1746282633483,-400.0,0.00019637,2]
[359726145,1746282633493,-400.0,0.00019637,2]
[359726146,1746282633502,-417.64,0.00019637,2]
[359726147,1746282633511,-400.0,0.00019637,2]
[359726148,1746282633520,-400.0,0.00019638,2]
[359726149,1746282633530,-400.0,0.00019638,2]
[359726150,1746282633539,-400.0,0.00019674,2]
[359726151,1746282633549,-400.0,0.00019674,2]
[359726152,1746282633558,-502.32050621,0.00019706,2]
[359726153,1746282633568,-500.0,0.00019706,2]
[359726154,1746282633577,-500.0,0.00019706,2]
[359726155,1746282633586,-308.17316216,0.00019899,2]
[359726156,1746282633595,-3361.48283989,0.000199,2]
[359726157,1746282633605,-400.0,0.0001991,2]
[359726158,1746282633615,-400.0,0.0001991,2]
[359726159,1746282633625,-265.52,0.00019911,2]
[359726160,1746282633635,-400.0,0.00019911,2]
[359726161,1746282633647,-168.31,0.00019911,2]
[359726162,1746282633656,-400.0,0.00019911,2]
[359726163,1746282633665,-400.0,0.00019911,2]
[359726164,1746282633674,-400.0,0.00019912,2]
[359726165,1746282633684,-288.32516601,0.00019912,2]
[359726166,1746282633695,-400.0,0.00019948,2]
[359726167,1746282633704,-400.0,0.00019948,2]
[359726168,1746282633713,-182.16284668,0.00020013,2]
[359726169,1746282633725,-500.0,0.00020022,2]
[359726170,1746282633734,-160.0,0.00020024,2]
[359726171,1746282633743,-160.0,0.00020024,2]
[359726172,1746282633753,-160.0,0.00020024,2]
[359726173,1746282633763,-12595.7684382,0.00020024,2]
[359726174,1746282633772,-841.47485993,0.00020024,2]
[359726175,1746282633782,-421.66712248,0.00020024,2]
[359726176,1746282633791,-160.0,0.00020024,2]
[359726177,1746282633800,-229.47139339,0.00020071,2]
[359726178,1746282633810,-500.0,0.00020071,2]
[359726179,1746282633819,-400.0,0.00020184,2]
[359726180,1746282633829,-400.0,0.00020184,2]
[359726181,1746282633838,-342.92,0.00020185,2]
[359726182,1746282633848,-400.0,0.00020185,2]
[359726183,1746282633857,-400.0,0.00020185,2]
[359726184,1746282633867,-400.0,0.00020186,2]
[359726185,1746282633876,-420.0,0.00020217,2]
[359726186,1746282633885,-493.32,0.00020222,2]
[359726187,1746282633895,-400.0,0.00020222,2]
[359726188,1746282633905,-994.36822103,0.00020442,2]
[359726189,1746282633915,-400.0,0.00020458,2]
[359726190,1746282633925,-400.0,0.00020458,2]
[359726191,1746282633934,-481.08169581,0.00020459,2]
[359726192,1746282633944,-400.0,0.00020459,2]
[359726193,1746282633953,-400.0,0.0002046,2]
[359726194,1746282633963,-400.0,0.00020496,2]
[359726195,1746282633973,-3361.48283964,0.0002059,3]
[359726196,1746282633983,-400.0,0.00020732,2]
[359726197,1746282633992,-196.14,0.00020732,2]
[359726198,1746282634002,-400.0,0.00020733,2]
[359726199,1746282634011,-400.0,0.00020734,2]
[359726200,1746282634021,-400.0,0.0002077,2]
[359726201,1746282634030,-157.65,0.00021,2]
[359726202,1746282634040,-487.83877722,0.00021,5]
[359726203,1746282634049,-400.0,0.00021006,2]
[359726204,1746282634058,-400.0,0.00021007,2]
[359726205,1746282634068,-457.29,0.00021008,2]
[359726206,1746282634077,-15389.02080105,0.00021043,2]
[359726327,1746282638727,-3170.50835341,0.00021043,2]
[359726330,1746282638739,-434.81370448,0.00021043,2]
[359726332,1746282638751,-2632.55469546,0.00021043,2]
[359726334,1746282638762,-895.10319183,0.00021043,2]
[359726336,1746282638774,-19274.4,0.00021043,2]
[359727146,1746282646659,-303.67583683,0.0001854,2]
[359727148,1746282646671,-400.0,0.0001854,2]
[359727150,1746282646680,-1362.76442781,0.00021043,2]
[359727152,1746282646693,-23307.36724234,0.00021043,2]
[359727894,1746282658195,1000.0,0.000179,2]
[359727896,1746282699444,200.06366001,0.000179,2]
[359728771,1746283503945,-192.16684645,0.00018,2]
[359728773,1746283503968,-57.83315355,0.00018,2]
[359729612,1746283631132,-2179.98377995,0.00018,2]
[359729613,1746283633106,-163.63478889,0.00018,2]
[359729614,1746283633127,-211.45640937,0.0001844,2]
[359729615,1746283639278,-38.54359063,0.0001844,2]
[359729616,1746283639300,-457.77914891,0.0001845,2]
[359729617,1746283645179,-50.21029199,0.0001845,2]
[359729618,1746283645201,-511.48152118,0.00018898,2]
[359729619,1746283653087,-198.37355346,0.00018798,2]
[359729620,1746283653109,-688.51847882,0.00018898,2]
[359729621,1746283653130,-300.0,0.00018898,2]
[359729622,1746283653151,-400.0,0.00018899,2]
[359729623,1746283653171,-400.0,0.00018899,2]
[359729624,1746283653192,-380.94959983,0.00018943,2]
[359729981,1746283832399,-854.86816081,0.00018,2]
[359729983,1746283832409,-449.8629635,0.000189,2]
[359729985,1746283832420,-546.18,0.00019173,2]
[359729987,1746283832429,-400.0,0.00019173,2]
[359729989,1746283832439,-400.0,0.00019447,2]
[359729991,1746283832449,-250.0,0.00019482,2]
[359729993,1746283832459,-392.12,0.00019721,2]
[359729995,1746283832468,-300.0,0.00019898,2]
[359729997,1746283832478,-3099.64108079,0.00019899,2]
[359729999,1746283832487,-400.0,0.00019899,2]
[359730001,1746283832496,-336.5662399,0.00019899,2]
[359730003,1746283832506,-400.0,0.00019899,2]
[359730005,1746283832515,-400.0,0.00019899,2]
[359730007,1746283832524,-400.0,0.00019899,2]
[359730009,1746283832537,-400.0,0.00019899,2]
[359730011,1746283832546,-400.0,0.00019899,2]
[359730012,1746283832555,-400.0,0.00019899,2]
[359730015,1746283832568,-400.0,0.00019899,2]
[359730017,1746283832578,-400.0,0.00019899,2]
[359730019,1746283832587,-400.0,0.00019899,2]
[359730020,1746283832597,-230.57567476,0.00019899,2]
[359730022,1746283832607,-400.0,0.00019899,2]
[359730024,1746283832616,-400.0,0.00019899,2]
[359730026,1746283832625,-512.66,0.00019899,2]
[359730028,1746283832636,-444.39124546,0.00019899,2]
[359730031,1746283832648,-99.52998689,0.00019899,2]
[359730033,1746283832658,-400.0,0.00019899,2]
[359730035,1746283832667,-107.312534,0.00019899,2]
[359730253,1746283846682,-198.37355345,0.00019799,2]
[359730254,1746283846692,-292.687466,0.00019899,2]
[359730255,1746283846702,-400.0,0.00019899,2]
[359730256,1746283846711,-251.90313014,0.00019899,2]
[359730257,1746283846721,-400.0,0.00019994,2]
[359730258,1746283846733,-400.0,0.00019994,2]
[359730259,1746283846744,-400.0,0.00019994,2]
[359730260,1746283846753,-425.29340883,0.00020012,2]
[359731039,1746284946115,-856.53539313,0.00018,2]
[359731040,1746284946136,-191.37972229,0.00018675,2]
[359731041,1746284946157,-250.0,0.00018775,2]
[359731042,1746284946177,-300.0,0.00018799,2]
[359731043,1746284946197,-803.62925085,0.000188,2]
[359731044,1746284946216,-236.38542177,0.000188,2]
[359731065,1746285032503,-414.1104975,0.00018688,2]
[359731066,1746285032567,-785.8895025,0.00018688,2]
[359731067,1746285032577,-300.0,0.00018688,2]
[359731068,1746285032587,-21369.4973934,0.00018689,2]
[359731069,1746285032598,-502.90072755,0.00018781,2]
[359731070,1746285032607,-16.06169,0.000188,2]
[359731071,1746285032617,-4067.79038475,0.000188,2]
[359731072,1746285032626,-1150.50843825,0.000189,2]
[359731073,1746285032635,-539.4600168,0.000189,2]
[359731074,1746285032645,-282.518708,0.00018957,2]
[359731075,1746285032654,-4522.26496053,0.00019362,2]
[359731076,1746285032666,-15940.2278727,0.00019362,2]
[359731117,1746285038416,-255.83204123,0.00018799,2]
[359731129,1746285038515,-244.16795877,0.00018799,2]
[359731131,1746285038525,-500.0,0.00018799,2]
[359731133,1746285038534,-500.0,0.00018799,2]
[359731135,1746285038543,-390.97771565,0.00018799,2]
[359731137,1746285038552,-193.53242469,0.00018799,2]
[359731139,1746285038561,-500.0,0.00018799,2]
[359731141,1746285038571,-500.0,0.00018799,2]
[359731143,1746285038581,-46.60497756,0.00018799,2]
[359731145,1746285038592,-453.39502244,0.00018799,2]
[359731148,1746285038612,-2295.54096285,0.00018799,2]
[359731150,1746285038623,-500.0,0.00018799,2]
[359731152,1746285038632,-500.0,0.00018799,2]
[359731154,1746285038642,-500.0,0.00018799,2]
[359731173,1746285038652,-500.0,0.00018799,2]
[359731176,1746285038832,-500.0,0.00018799,2]
[359731178,1746285038842,-500.0,0.00018799,2]
[359731180,1746285038852,-301.30802479,0.00018799,2]
[359731394,1746285040887,-198.69197521,0.00018799,2]
[359731396,1746285040897,-508.95119511,0.00018799,2]
[359731398,1746285040907,-500.0,0.00018799,2]
[359731400,1746285040919,-317.05387388,0.00018799,2]
[359731666,1746285043540,-272.92867249,0.00018799,2]
[359731668,1746285043550,-500.0,0.00018799,2]
[359731670,1746285043559,-500.0,0.00018799,2]
[359731672,1746285043569,-500.0,0.00018799,2]
[359731674,1746285043578,-614.71393109,0.00018799,2]
[359731953,1746285046663,-500.0,0.00018799,2]
[359731955,1746285046676,-1180.82703176,0.00018799,2]
[359731957,1746285046686,-500.0,0.00018799,2]
[359731959,1746285046695,-500.0,0.00018799,2]
[359731960,1746285046705,-500.0,0.00018799,2]
[359731962,1746285046715,-500.0,0.00018799,2]
[359731964,1746285046724,-161.22109772,0.00018799,2]
[359731966,1746285046734,-500.0,0.00018799,2]
[359731967,1746285046744,-500.0,0.00018799,2]
[359731968,1746285046753,-2037.57369956,0.00018799,2]
[359732071,1746285278240,10000.0,0.00017724,2]
[359732076,1746285404740,250.0,0.00017916,2]
[359732077,1746285412696,604.27843059,0.00017921,2]
[359732081,1746285460182,164.94915704,0.00017997,2]
[359732082,1746285470928,267.35303647,0.00017997,2]
[359732102,1746285609994,1200.0,0.00017999,2]
[359732104,1746285620163,198.37355345,0.00017916,2]
[359732106,1746285696880,267.35303645,0.00017915,2]
[359732107,1746285707208,1776.7468788,0.00017434,2]
[359732117,1746285788380,370.8493873,0.00017394,2]
[359732118,1746285798867,292.84777523,0.000179,2]
[359732119,1746285802268,267.35303645,0.00017915,2]
[359732122,1746285896316,587.31549619,0.00016792,2]
[359732123,1746285896786,587.31549619,0.00017151,2]
[359732124,1746285896945,587.31549619,0.00017478,2]
[359732125,1746285897278,587.31549619,0.00017693,2]
[359732126,1746285897574,587.31549619,0.0001792,2]
[359732127,1746285902617,300.0,0.00017999,2]
[359732128,1746285902648,300.0,0.00017999,2]
[359732129,1746285902692,300.0,0.00017999,2]
[359732130,1746285902825,300.0,0.00017999,2]
[359732136,1746285910268,1200.0,0.00017999,2]
[359732137,1746285919578,300.0,0.00017999,2]
[359732142,1746285963485,300.0,0.00017999,2]
[359732169,1746286017303,756.6859088,0.00017356,2]
[359732170,1746286023289,300.0,0.00017999,2]
[359732176,1746286044342,669.1302447,0.00017432,2]
[359732186,1746286083494,300.0,0.00017999,2]
[359732188,1746286112010,500.0,0.00017999,2]
[359732189,1746286112196,287.67386331,0.00017999,2]
[359732191,1746286112687,500.0,0.00017999,2]
[359732192,1746286113142,353.38332906,0.00017999,2]
[359732193,1746286113749,500.0,0.00017999,2]
[359732194,1746286113780,500.0,0.00017999,2]
[359732195,1746286113812,500.0,0.00017999,2]
[359732196,1746286113844,408.0047573,0.00017999,2]
[359732197,1746286113874,441.08943706,0.00017999,2]
[359732198,1746286113910,500.0,0.00017999,2]
[359732199,1746286113944,550.42484332,0.00017999,2]
[359732200,1746286113988,1060.10457884,0.00017999,2]
[359732201,1746286114020,500.0,0.00017999,2]
[359732202,1746286114058,500.0,0.00017999,2]
[359732203,1746286114089,500.0,0.00017999,2]
[359732204,1746286114132,1060.10457884,0.00017999,2]
[359732205,1746286114168,500.0,0.00017999,2]
[359732206,1746286114199,500.0,0.00017999,2]
[359732207,1746286114240,500.0,0.00017999,2]
[359732208,1746286114272,500.0,0.00017999,2]
[359732209,1746286114316,1060.10457884,0.00017999,2]
[359732210,1746286114356,578.37946512,0.00017999,2]
[359732211,1746286114398,1060.10457884,0.00017999,2]
[359732212,1746286114463,1060.10457884,0.00017999,2]
[359732213,1746286114513,1060.10457884,0.00017999,2]
[359732214,1746286114572,1060.10457884,0.00017999,2]
[359732215,1746286114622,1060.10457884,0.00017999,2]
[359732216,1746286114668,1060.10457884,0.00017999,2]
[359732217,1746286114722,1060.10457884,0.00017999,2]
[359732218,1746286114771,1060.10457884,0.00017999,2]
[359732219,1746286114816,1060.10457884,0.00017999,2]
[359732220,1746286114870,1060.10457884,0.00017999,2]
[359732221,1746286114928,1060.10457884,0.00017999,2]
[359732222,1746286114983,1060.10457884,0.00017999,2]
[359732223,1746286115064,1060.10457884,0.00017999,2]
[359732224,1746286115115,1060.10457884,0.00017999,2]
[359732225,1746286115158,1060.10457884,0.00017999,2]
[359732227,1746286115213,1060.10457884,0.00017999,2]
[359732228,1746286115255,1060.10457884,0.00017999,2]
[359732229,1746286115299,1060.10457884,0.00017999,2]
[359732230,1746286115387,1060.10457884,0.00017999,2]
[359732231,1746286115459,1060.10457884,0.00017999,2]
[359732232,1746286115621,1060.10457884,0.00017999,2]
[359732233,1746286115692,1060.10457884,0.00017999,2]
[359732234,1746286115772,1060.10457884,0.00017999,2]
[359732236,1746286122001,254.00213827,0.000179,2]
[359732238,1746286125937,1163.5294158,0.00017999,2]
[359732239,1746286126012,1163.5294158,0.00017999,2]
[359732240,1746286126087,1163.5294158,0.00017999,2]
[359732241,1746286126166,1163.5294158,0.00017999,2]
[359732242,1746286126237,1163.5294158,0.00017999,2]
[359732243,1746286126308,1163.5294158,0.00017999,2]
[359732244,1746286126378,1163.5294158,0.00017999,2]
[359732245,1746286126444,1163.5294158,0.00017999,2]
[359732246,1746286126519,1163.5294158,0.00017999,2]
[359732247,1746286126586,1163.5294158,0.00017999,2]
[359732248,1746286126656,1163.5294158,0.00017999,2]
[359732249,1746286126720,1163.5294158,0.00017999,2]
[359732250,1746286126786,1163.5294158,0.00017999,2]
[359732252,1746286126870,1163.5294158,0.00017999,2]
[359732254,1746286126943,1163.5294158,0.00017999,2]
[359732256,1746286127012,1163.5294158,0.00017999,2]
[359732258,1746286127093,1163.5294158,0.00017999,2]
[359732259,1746286127173,1163.5294158,0.00017999,2]
[359732260,1746286127248,1163.5294158,0.00017999,2]
[359732261,1746286127338,1163.5294158,0.00017999,2]
[359732262,1746286127719,1163.5294158,0.00017999,2]
[359732263,1746286127785,1163.5294158,0.00017999,2]
[359732264,1746286127854,1163.5294158,0.00017999,2]
[359732265,1746286127935,1163.5294158,0.00017999,2]
[359732266,1746286128011,1163.5294158,0.00017999,2]
[359732267,1746286128186,1163.5294158,0.00017999,2]
[359732269,1746286132401,500.0,0.00017999,2]
[359732270,1746286132434,500.0,0.00017999,2]
[359732271,1746286132471,500.0,0.00017999,2]
[359732272,1746286132654,500.0,0.00017999,2]
[359732273,1746286132700,500.0,0.00017999,2]
[359732274,1746286132733,500.0,0.00017999,2]
[359732275,1746286132765,500.0,0.00017999,2]
[359732276,1746286132802,500.0,0.00017999,2]
[359732277,1746286132836,500.0,0.00017999,2]
[359732278,1746286132868,500.0,0.00017999,2]
[359732279,1746286133075,500.0,0.00017999,2]
[359732280,1746286133141,500.0,0.00017999,2]
[359732281,1746286133184,500.0,0.00017999,2]
[359732282,1746286133216,500.0,0.00017999,2]
[359732283,1746286133249,500.0,0.00017999,2]
[359732284,1746286133291,500.0,0.00017999,2]
[359732285,1746286133330,500.0,0.00017999,2]
[359732286,1746286133362,500.0,0.00017999,2]
[359732287,1746286133398,500.0,0.00017999,2]
[359732288,1746286133434,500.0,0.00017999,2]
[359732289,1746286133470,500.0,0.00017999,2]
[359732290,1746286133502,500.0,0.00017999,2]
[359732291,1746286133534,500.0,0.00017999,2]
[359732292,1746286133566,500.0,0.00017999,2]
[359732293,1746286133601,472.67917309,0.00017999,2]
[359732294,1746286133635,500.0,0.00017999,2]
[359732295,1746286133675,500.0,0.00017999,2]
[359732296,1746286133708,500.0,0.00017999,2]
[359732297,1746286133748,500.0,0.00017999,2]
[359732298,1746286133779,605.324858,0.00017325,2]
[359732299,1746286133812,500.0,0.00017999,2]
[359732300,1746286133853,500.0,0.00017999,2]
[359732301,1746286133891,500.0,0.00017999,2]
[359732302,1746286133922,500.0,0.00017999,2]
[359732303,1746286133960,500.0,0.00017999,2]
[359732304,1746286133993,500.0,0.00017999,2]
[359732305,1746286134031,403.75992517,0.00017999,2]
[359732306,1746286134069,500.0,0.00017999,2]
[359732307,1746286134107,500.0,0.00017999,2]
[359732308,1746286134145,500.0,0.00017999,2]
[359732309,1746286134178,500.0,0.00017999,2]
[359732310,1746286134225,500.0,0.00017999,2]
[359732311,1746286134262,500.0,0.00017999,2]
[359732312,1746286134303,500.0,0.00017999,2]
[359732313,1746286134343,500.0,0.00017999,2]
[359732314,1746286134375,500.0,0.00017999,2]
[359732315,1746286134406,500.0,0.00017999,2]
[359732316,1746286134446,500.0,0.00017999,2]
[359732317,1746286134482,500.0,0.00017999,2]
[359732318,1746286134518,500.0,0.00017999,2]
[359732319,1746286134550,500.0,0.00017999,2]
[359732320,1746286134590,500.0,0.00017999,2]
[359732321,1746286134626,500.0,0.00017999,2]
[359732322,1746286143087,300.0,0.00017999,2]
[359732323,1746286145222,500.0,0.00017999,2]
[359732324,1746286145271,500.0,0.00017999,2]
[359732325,1746286145532,1918.86663914,0.00017999,2]
[359732326,1746286145567,500.0,0.00017999,2]
[359732327,1746286145600,500.0,0.00017999,2]
[359732328,1746286145647,1918.86663914,0.00017999,2]
[359732329,1746286145680,500.0,0.00017999,2]
[359732330,1746286145735,1918.86663914,0.00017999,2]
[359732331,1746286145767,500.0,0.00017999,2]
[359732332,1746286145798,500.0,0.00017999,2]
[359732333,1746286145842,1918.86663914,0.00017999,2]
[359732334,1746286145886,500.0,0.00017999,2]
[359732335,1746286145929,1918.86663914,0.00017999,2]
[359732336,1746286145960,500.0,0.00017999,2]
[359732337,1746286146000,500.0,0.00017999,2]
[359732338,1746286146043,1918.86663914,0.00017999,2]
[359732339,1746286146078,500.0,0.00017999,2]
[359732340,1746286146123,1918.86663914,0.00017999,2]
[359732341,1746286146156,500.0,0.00017999,2]
[359732342,1746286146203,1918.86663914,0.00017999,2]
[359732343,1746286146299,1918.86663914,0.00017999,2]
[359732344,1746286146342,200.0,0.00017999,2]
[359732345,1746286146382,500.0,0.00017999,2]
[359732346,1746286146426,500.0,0.00017999,2]
[359732347,1746286146469,1918.86663914,0.00017999,2]
[359732348,1746286146517,1918.86663914,0.00017999,2]
[359732349,1746286146577,1918.86663914,0.00017999,2]
[359732350,1746286146640,1918.86663914,0.00017999,2]
[359732351,1746286146723,1918.86663914,0.00017999,2]
[359732352,1746286146777,1918.86663914,0.00017999,2]
[359732353,1746286146825,1918.86663914,0.00017999,2]
[359732354,1746286146870,1918.86663914,0.00017999,2]
[359732355,1746286146947,1918.86663914,0.00017999,2]
[359732356,1746286147017,1918.86663914,0.00017999,2]
[359732357,1746286147103,1918.86663914,0.00017999,2]
[359732358,1746286147194,1918.86663914,0.00017999,2]
[359732359,1746286147446,1918.86663914,0.00017999,2]
[359732360,1746286147525,1918.86663914,0.00017999,2]
[359732361,1746286147595,1918.86663914,0.00017999,2]
[359732362,1746286147689,1918.86663914,0.00017999,2]
[359732363,1746286147757,1918.86663914,0.00017999,2]
[359732364,1746286147845,1918.86663914,0.00017999,2]
[359732365,1746286147945,1918.86663914,0.00017999,2]
[359732366,1746286148168,1759.79067528,0.000179,2]
[359732368,1746286152981,24900.0,0.00017324,2]
[359732370,1746286179427,1013.0323373,0.00017314,2]
[359732371,1746286194276,500.352108,0.00017315,2]
[359732372,1746286202477,300.0,0.00017999,2]
[359732373,1746286202705,300.0,0.00017999,2]
[359732374,1746286202864,300.0,0.00017999,2]
[359732375,1746286203080,300.0,0.00017999,2]
[359732376,1746286209745,1200.0,0.00017999,2]
[359732377,1746286218997,300.0,0.00017999,2]
[359732378,1746286222337,400.0,0.00017999,2]
[359732379,1746286228075,400.0,0.00017999,2]
[359732425,1746286232691,-8599.46460687,0.00018,2]
[359732427,1746286232701,-2304.0,0.00018,2]
[359732429,1746286232711,-1500.0,0.00018,2]
[359732431,1746286232722,-121308.10832324,0.00018,2]
[359732433,1746286232734,-5743.122834,0.00018,2]
[359732435,1746286232743,-160.0,0.00018,2]
[359732437,1746286232753,-170.86238746,0.00018016,2]
[359732440,1746286232766,-416.41376901,0.00018016,2]
[359732442,1746286232776,-400.0,0.00018273,2]
[359732444,1746286232785,-400.0,0.00018273,2]
[359732446,1746286232796,-152.0,0.00018285,2]
[359732448,1746286232805,-13942.40372426,0.00018318,2]
[359732450,1746286232817,-36057.59627574,0.00018318,2]
[359732453,1746286232827,-7054.4260737,0.00018327,2]
[359732455,1746286232837,-815.22,0.00018418,2]
[359732457,1746286232847,-400.0,0.00018418,2]
[359732459,1746286232856,-841.24,0.00018418,2]
[359732461,1746286232866,-400.0,0.00018418,2]
[359732463,1746286232875,-400.0,0.00018418,2]
[359732465,1746286232885,-2437.89,0.00018418,2]
[359732467,1746286232895,-400.0,0.00018418,2]
[359732469,1746286232904,-400.0,0.00018418,2]
[359732471,1746286232914,-501.67,0.00018418,2]
[359732473,1746286232924,-717.19,0.00018418,2]
[359732475,1746286232933,-400.0,0.00018418,2]
[359732477,1746286232943,-588.4,0.00018418,2]
[359732479,1746286232954,-1546.2,0.00018418,2]
[359732481,1746286232963,-400.0,0.00018418,2]
[359732483,1746286232973,-508.44,0.00018418,2]
[359732485,1746286232983,-1134.81,0.00018418,2]
[359732487,1746286232992,-49285.51308689,0.00018419,2]
[359732489,1746286233002,-2510.99895943,0.000185,2]
[359732509,1746286233012,-506.25609039,0.00018519,2]
[359732512,1746286233190,-761.11,0.00018519,2]
[359732514,1746286233200,-400.0,0.00018519,2]
[359732516,1746286233209,-400.0,0.00018519,2]
[359732518,1746286233219,-400.0,0.00018519,2]
[359732520,1746286233229,-709.59,0.00018519,2]
[359732522,1746286233239,-400.0,0.00018519,2]
[359732524,1746286233249,-400.0,0.00018519,2]
[359732526,1746286233258,-151.0,0.00018519,2]
[359732528,1746286233269,-151.0,0.00018519,2]
[359732529,1746286233279,-151.0,0.00018519,2]
[359732531,1746286233288,-151.0,0.00018519,2]
[359732533,1746286233297,-151.0,0.00018519,2]
[359732535,1746286233307,-400.0,0.00018519,2]
[359732537,1746286233317,-400.0,0.00018519,2]
[359732539,1746286233326,-400.0,0.00018519,2]
[359732541,1746286233336,-151.0,0.0001852,2]
[359732542,1746286233346,-175.18588919,0.0001852,2]
[359732544,1746286233355,-400.83267496,0.00018547,2]
[359732546,1746286233364,-400.0,0.00018547,2]
[359732548,1746286233374,-472.11,0.0001856,3]
[359732550,1746286233384,-151.0,0.0001857,2]
[359732553,1746286233393,-151.0,0.0001857,2]
[359732554,1746286233404,-612.74,0.0001857,2]
[359732555,1746286233413,-400.0,0.0001857,2]
[359732556,1746286233423,-155.190602,0.0001857,2]
[359732557,1746286233433,-420.55239434,0.0001857,2]
[359732558,1746286233442,-529.29,0.0001857,2]
[359732559,1746286233452,-769.65,0.0001857,2]
[359732560,1746286233462,-344.525463,0.0001857,2]
[359732561,1746286233472,-344.525463,0.0001857,2]
[359732562,1746286233482,-344.525463,0.0001857,2]
[359732563,1746286233491,-344.525463,0.0001857,2]
[359732564,1746286233501,-344.525463,0.0001857,2]
[359732565,1746286233511,-344.525463,0.0001857,2]
[359732566,1746286233521,-344.525463,0.0001857,2]
[359732567,1746286233531,-344.525463,0.0001857,2]
[359732568,1746286233541,-344.525463,0.0001857,2]
[359732569,1746286233551,-344.525463,0.0001857,2]
[359732570,1746286233561,-344.525463,0.0001857,2]
[359732571,1746286233570,-400.0,0.0001857,2]
[359732572,1746286233579,-344.525463,0.0001857,2]
[359732573,1746286233589,-344.525463,0.0001857,2]
[359732574,1746286233599,-344.525463,0.0001857,2]
[359732575,1746286233608,-344.525463,0.0001857,2]
[359732576,1746286233617,-344.525463,0.0001857,2]
[359732577,1746286233627,-344.525463,0.0001857,2]
[359732578,1746286233636,-344.525463,0.0001857,2]
[359732579,1746286233648,-344.525463,0.0001857,2]
[359732580,1746286233658,-344.525463,0.0001857,2]
[359732581,1746286233667,-458.9,0.0001857,2]
[359732582,1746286233677,-659.78,0.0001857,2]
[359732583,1746286233687,-400.0,0.0001857,2]
[359732584,1746286233696,-400.0,0.0001857,2]
[359732585,1746286233706,-400.0,0.0001857,2]
[359732586,1746286233715,-400.0,0.0001857,2]
[359732587,1746286233724,-400.0,0.0001857,2]